[Event "XII Cracow ICC-B 2024"]
[Site "Krakow"]
[Date "2024.06.25"]
[Round "5.1"]
[White "Zieba, Hubert"]
[Black "Wnek, Filip"]
[Result "0-1"]
[ECO "D11"]
[WhiteElo "2012"]
[BlackElo "2019"]
[Annotator "NA RC"]
[PlyCount "77"]
[EventDate "2024.06.20"]
[EventType "swiss"]
[EventCountry "POL"]
[SourceTitle "playchess.com"]
[Source "ChessBase"]
[SourceQuality "1"]
[TimeControl "40/5400+30:1800+30"]

1. d4 {[%emt 0:00:03]} d5 {[%emt 0:00:10]} 2. c4 {[%emt 0:00:16]} c6 {[%emt 0:00:13]} 3. Nf3 {[%emt 0:00:20]} e6 {[%emt 0:00:20]} 4. Qc2 {[%emt 0:00:16]} Nf6 {[%emt 0:02:41]} 5. g3 {[%emt 0:00:10]} dxc4 {[%emt 0:06:40]} 6. Qxc4 {[%emt 0:01:24]} b5 {[%emt 0:00:56]} 7. Qc2 {[%emt 0:00:08]} Bb7 {[%emt 0:00:10]} 8. Bg2 {[%emt 0:01:53]} Nbd7 {[%emt 0:00:21]} 9. O-O {[%emt 0:03:45]} Rc8 {[%emt 0:01:47]} 10. Nc3 {[%emt 0:09:57]} a6 {[%emt 0:02:24]} 11. Ne5 {[%emt 0:08:49]} Nxe5 {[%emt 0:23:55]} 12. dxe5 {[%emt 0:10:06]} Nd5 {[%emt 0:00:06]} 13. Nxd5 {[%emt 0:00:30]} cxd5 {[%emt 0:00:30]} 14. Qd3 {[%emt 0:00:30]} Bc5 {[%emt 0:01:12]} 15. h4 {[%emt 0:06:41]} Qb6 {[%emt 0:00:57]} 16. Rb1 {[%emt 0:05:00]} a5 {[%emt 0:00:23]} 17. h5 {[%emt 0:07:55]} h6 {[%emt 0:01:33]} 18. Qf3 {[%emt 0:05:51]} O-O {[%emt 0:07:24]} 19. Qg4 {[%emt 0:12:28]} Kh7 {[%emt 0:01:00]} 20. Qh4 {[%emt 0:03:35]} Bd4 {[%emt 0:01:50]} 21. Bf4 {[%emt 0:01:25]} Rc2 {[%emt 0:04:38]} 22. e3 {[%emt 0:00:53]} Bxb2 {[%emt 0:02:27]} 23. g4 {[%emt 0:00:35]} f6 {[%emt 0:13:25]} 24. exf6 {[%emt 0:02:04]} Bxf6 {[%emt 0:00:12]} 25. g5 {[%emt 0:00:24]} hxg5 {[%emt 0:03:39]} 26. Bxg5 {[%emt 0:03:55]} Bxg5 {[%emt 0:02:54]} 27. Qxg5 {[%emt 0:00:05]} Rf6 {[%emt 0:00:05]} 28. Rbe1 {[%emt 0:07:59]} b4 {[%emt 0:03:41]} 29. f4 {[%emt 0:00:12]} Rxa2 {[%emt 0:03:31]} 30. Rf3 {[%emt 0:00:52]} d4 {[%emt 0:04:00]} 31. Rg3 {[%emt 0:00:37]} Rxg2+ {[%emt 0:00:35]} 32. Rxg2 {[%emt 0:00:11]} Bxg2 {[%emt 0:00:10]} 33. Kxg2 {[%emt 0:00:24]} dxe3 {[%emt 0:00:48]} 34. Kf3 {[%emt 0:00:54]} b3 {[%emt 0:02:17]} 35. Qe5 {[%emt 0:01:06]} Qc6+ {[%emt 0:06:05]} 36. Kxe3 {[%emt 0:00:46]} a4 {[%emt 0:00:16]} 37. Kf2 {[%emt 0:01:21]} Rf5 {[%emt 0:00:59]} 38. Qd4 {[%emt 0:00:12]} Rc5 {[%emt 0:00:00]} 39. Rxe6 {[%emt 0:00:21]} 0-1

[Event "XII Cracow ICC-B 2024"]
[Site "Krakow"]
[Date "2024.06.25"]
[Round "5.2"]
[White "Botez, Andrea"]
[Black "Jakubiec, Maurycy"]
[Result "1/2-1/2"]
[ECO "D01"]
[WhiteElo "1906"]
[BlackElo "1607"]
[Annotator "RC"]
[PlyCount "98"]
[EventDate "2024.06.20"]
[EventType "swiss"]
[EventCountry "POL"]
[SourceTitle "playchess.com"]
[Source "ChessBase"]
[SourceQuality "1"]
[TimeControl "40/5400+30:1800+30"]

1. d4 {[%emt 0:03:34]} Nf6 {[%emt 0:00:18]} 2. Nc3 {[%emt 0:00:07]} d5 {[%emt 0:01:56]} 3. Bf4 {[%emt 0:00:13]} c6 {[%emt 0:02:04]} 4. e3 {[%emt 0:00:46]} Bf5 {[%emt 0:01:42]} 5. f3 {[%emt 0:01:32]} e6 {[%emt 0:04:02]} 6. g4 {[%emt 0:00:42]} Bg6 {[%emt 0:00:23]} 7. h4 {[%emt 0:00:07]} h6 {[%emt 0:01:36]} 8. Bd3 {[%emt 0:00:10]} Bxd3 {[%emt 0:00:27]} 9. Qxd3 {[%emt 0:00:07]} Bd6 {[%emt 0:00:30]} 10. Nge2 {[%emt 0:00:50]} Na6 {[%emt 0:02:45]} 11. O-O-O {[%emt 0:00:38]} Bxf4 {[%emt 0:02:26]} 12. Nxf4 {[%emt 0:00:25]} Qe7 {[%emt 0:09:07]} 13. g5 {[%emt 0:05:08]} Nd7 {[%emt 0:02:47]} 14. g6 {[%emt 0:00:55]} O-O-O {[%emt 0:09:38]} 15. e4 {[%emt 0:05:00]} Qf6 {[%emt 0:05:54]} 16. Nce2 {[%emt 0:11:37]} e5 {[%emt 0:06:48]} 17. dxe5 {[%emt 0:11:31]} Nxe5 {[%emt 0:03:30]} 18. Qc3 {[%emt 0:01:30]} dxe4 {[%emt 0:11:33]} 19. Nd5 {[%emt 0:25:08]} Qe6 {[%emt 0:07:51]} 20. Nef4 {[%emt 0:03:00]} Qe8 {[%emt 0:01:53]} 21. gxf7 {[%emt 0:01:07]} Qxf7 {[%emt 0:07:26]} 22. Qxe5 {[%emt 0:11:40]} cxd5 {[%emt 0:00:26]} 23. Nxd5 {[%emt 0:01:26]} Rhe8 {[%emt 0:01:52]} 24. Qc3+ {[%emt 0:00:25]} Kb8 {[%emt 0:02:34]} 25. fxe4 {[%emt 0:00:24]} Rxe4 {[%emt 0:01:23]} 26. Qg3+ {[%emt 0:00:38]} Kc8 {[%emt 0:02:18]} 27. Qd3 {[%emt 0:06:06]} Ree8 {[%emt 0:02:53]} 28. Qc4+ {[%emt 0:01:49]} Kb8 {[%emt 0:01:26]} 29. Rhf1 {[%emt 0:00:18]} Qe6 {[%emt 0:01:35]} 30. Kb1 {[%emt 0:02:54]} Qe4 {[%emt 0:03:21]} 31. Qxe4 {[%emt 0:04:53]} Rxe4 {[%emt 0:00:17]} 32. h5 {[%emt 0:00:13]} Re5 {[%emt 0:00:37]} 33. Nf4 {[%emt 0:00:07]} Rxd1+ {[%emt 0:00:29]} 34. Rxd1 {[%emt 0:00:01]} Kc7 {[%emt 0:01:01]} 35. Rg1 {[%emt 0:00:30]} Kd6 {[%emt 0:01:00]} 36. Rg6+ {[%emt 0:00:14]} Ke7 {[%emt 0:01:48]} 37. Rxg7+ {[%emt 0:00:19]} Kf8 {[%emt 0:00:38]} 38. Rg1 {[%emt 0:00:21]} Rf5 {[%emt 0:00:17]} 39. Rf1 {[%emt 0:00:54]} Kf7 {[%emt 0:00:22]} 40. Rf2 {[%emt 0:01:43]} Nc5 {[%emt 0:00:46]} 41. Nd3 {[%emt 0:30:40]} Rxf2 {[%emt 0:30:14]} 42. Nxf2 {[%emt 0:00:01]} Kf6 {[%emt 0:00:19]} 43. b4 {[%emt 0:00:00]} Ne6 {[%emt 0:00:00]} 44. c4 {[%emt 0:00:00]} Kg5 {[%emt 0:00:00]} 45. Kc2 {[%emt 0:00:00]} Kxh5 {[%emt 0:00:00]} 46. Kd3 {[%emt 0:00:00]} Kh4 {[%emt 0:00:00]} 47. Ke3 {[%emt 0:00:00]} Kg3 {[%emt 0:00:00]} 48. Ne4+ {[%emt 0:00:00]} Kg4 {[%emt 0:00:00]} 49. Nf2+ {[%emt 0:00:00]} Kg3 {[%emt 0:00:00]} 1/2-1/2

[Event "XII Cracow ICC-B 2024"]
[Site "Krakow"]
[Date "2024.06.25"]
[Round "5.3"]
[White "Gbyl, Andrzej"]
[Black "Omarsson, Adam"]
[Result "1-0"]
[ECO "E60"]
[WhiteElo "2152"]
[BlackElo "1997"]
[Annotator "RC"]
[PlyCount "127"]
[EventDate "2024.06.20"]
[EventType "swiss"]
[EventCountry "POL"]
[SourceTitle "playchess.com"]
[Source "ChessBase"]
[SourceQuality "1"]
[TimeControl "40/5400+30:1800+30"]

1. d4 {[%emt 0:01:10]} Nf6 {[%emt 0:01:44]} 2. Nf3 {[%emt 0:00:15]} g6 {[%emt 0:00:10]} 3. c4 {[%emt 0:00:30]} Bg7 {[%emt 0:00:08]} 4. Nc3 {[%emt 0:00:19]} O-O {[%emt 0:00:14]} 5. Bg5 {[%emt 0:00:29]} c5 {[%emt 0:01:34]} 6. d5 {[%emt 0:00:13]} d6 {[%emt 0:00:06]} 7. e4 {[%emt 0:02:34]} e6 {[%emt 0:01:06]} 8. Be2 {[%emt 0:00:17]} exd5 {[%emt 0:00:15]} 9. exd5 {[%emt 0:00:37]} h6 {[%emt 0:02:10]} 10. Bh4 {[%emt 0:01:34]} Bg4 {[%emt 0:03:33]} 11. O-O {[%emt 0:00:14]} g5 {[%emt 0:06:28]} 12. Bg3 {[%emt 0:00:06]} Nh5 {[%emt 0:00:40]} 13. Nd2 {[%emt 0:00:33]} Bxe2 {[%emt 0:00:15]} 14. Qxe2 {[%emt 0:00:09]} Nxg3 {[%emt 0:00:30]} 15. hxg3 {[%emt 0:02:19]} Kh8 {[%emt 0:04:51]} 16. Rae1 {[%emt 0:01:07]} Nd7 {[%emt 0:00:33]} 17. Nb5 {[%emt 0:08:03]} Nf6 {[%emt 0:07:18]} 18. Qe7 {[%emt 0:01:02]} Qa5 {[%emt 0:00:12]} 19. Rd1 {[%emt 0:15:04]} Nxd5 {[%emt 0:00:26]} 20. Qxb7 {[%emt 0:00:30]} Nb6 {[%emt 0:03:18]} 21. Nxd6 {[%emt 0:00:26]} Kg8 {[%emt 0:00:08]} 22. N2e4 {[%emt 0:07:23]} Qxa2 {[%emt 0:03:10]} 23. Ra1 {[%emt 0:03:55]} Qxb2 {[%emt 0:00:11]} 24. Rxa7 {[%emt 0:03:42]} Rxa7 {[%emt 0:00:09]} 25. Qxa7 {[%emt 0:00:06]} Qb4 {[%emt 0:02:33]} 26. Qe7 {[%emt 0:18:29]} Nxc4 {[%emt 0:16:52]} 27. Ne8 {[%emt 0:00:19]} Qb6 {[%emt 0:02:14]} 28. N4f6+ {[%emt 0:02:14]} Bxf6 {[%emt 0:00:15]} 29. Nxf6+ {[%emt 0:00:06]} Kg7 {[%emt 0:00:07]} 30. Nd7 {[%emt 0:00:12]} Qd6 {[%emt 0:02:42]} 31. Qxf8+ {[%emt 0:01:01]} Qxf8 {[%emt 0:00:04]} 32. Nxf8 {[%emt 0:00:07]} Kxf8 {[%emt 0:00:03]} 33. Rc1 {[%emt 0:00:04]} Ne5 {[%emt 0:00:18]} 34. Rxc5 {[%emt 0:00:12]} Ng6 {[%emt 0:00:06]} 35. Rc7 {[%emt 0:00:13]} Kg7 {[%emt 0:00:20]} 36. Ra7 {[%emt 0:00:06]} Ne5 {[%emt 0:00:40]} 37. Kf1 {[%emt 0:00:17]} Ng6 {[%emt 0:01:24]} 38. Ke2 {[%emt 0:00:26]} Ne5 {[%emt 0:00:43]} 39. f3 {[%emt 0:01:50]} Kg6 {[%emt 0:01:21]} 40. Ra6+ {[%emt 0:00:24]} Kg7 {[%emt 0:00:51]} 41. Ke3 {[%emt 0:30:20]} Nd7 {[%emt 0:30:27]} 42. Kd4 {[%emt 0:00:49]} Nf6 {[%emt 0:00:15]} 43. g4 {[%emt 0:02:17]} Nd7 {[%emt 0:00:18]} 44. Kd5 {[%emt 0:04:08]} Nf8 {[%emt 0:00:29]} 45. g3 {[%emt 0:02:48]} Ng6 {[%emt 0:00:17]} 46. Kd6 {[%emt 0:01:03]} Kf8 {[%emt 0:00:14]} 47. Ra4 {[%emt 0:01:25]} Kg7 {[%emt 0:00:13]} 48. f4 {[%emt 0:01:26]} gxf4 {[%emt 0:01:08]} 49. gxf4 {[%emt 0:00:05]} Kf6 {[%emt 0:00:12]} 50. Kd5 {[%emt 0:02:10]} Ne7+ {[%emt 0:00:14]} 51. Ke4 {[%emt 0:00:10]} Ng6 {[%emt 0:00:11]} 52. Ra6+ {[%emt 0:00:36]} Kg7 {[%emt 0:00:08]} 53. Rd6 {[%emt 0:07:02]} Nf8 {[%emt 0:00:17]} 54. f5 {[%emt 0:06:11]} Nh7 {[%emt 0:00:40]} 55. Ke5 {[%emt 0:00:28]} Ng5 {[%emt 0:01:07]} 56. Rd3 {[%emt 0:01:15]} Nh7 {[%emt 0:00:19]} 57. Ra3 {[%emt 0:00:58]} Nf6 {[%emt 0:00:58]} 58. Ra4 {[%emt 0:00:15]} Nh7 {[%emt 0:00:50]} 59. Ra6 {[%emt 0:01:54]} Ng5 {[%emt 0:00:15]} 60. Kd6 {[%emt 0:01:42]} Ne4+ {[%emt 0:04:41]} 61. Ke7 {[%emt 0:00:19]} Nf2 {[%emt 0:00:20]} 62. f6+ {[%emt 0:01:13]} Kh7 {[%emt 0:00:57]} 63. Kxf7 {[%emt 0:01:14]} Nxg4 {[%emt 0:00:05]} 64. Ke7 {[%emt 0:00:26]} 1-0

[Event "XII Cracow ICC-B 2024"]
[Site "Krakow"]
[Date "2024.06.25"]
[Round "5.4"]
[White "Botez, Alexandra"]
[Black "Wadelek, Karol"]
[Result "1-0"]
[ECO "E81"]
[WhiteElo "2011"]
[BlackElo "1974"]
[Annotator "NA"]
[PlyCount "137"]
[EventDate "2024.06.20"]
[EventType "swiss"]
[EventCountry "POL"]
[SourceTitle "playchess.com"]
[Source "ChessBase"]
[SourceQuality "1"]
[TimeControl "40/5400+30:1800+30"]

1. d4 {[%emt 0:00:02]} Nf6 {[%emt 0:04:24]} 2. c4 {[%emt 0:00:07]} g6 {[%emt 0:00:04]} 3. Nc3 {[%emt 0:00:17]} Bg7 {[%emt 0:00:06]} 4. e4 {[%emt 0:00:03]} d6 {[%emt 0:00:08]} 5. f3 {[%emt 0:00:05]} O-O {[%emt 0:00:08]} 6. Be3 {[%emt 0:00:03]} c5 {[%emt 0:00:03]} 7. Nge2 {[%emt 0:00:35]} Qa5 {[%emt 0:01:52]} 8. Qd2 {[%emt 0:00:15]} Nc6 {[%emt 0:02:45]} 9. O-O-O {[%emt 0:04:42]} cxd4 {[%emt 0:03:16]} 10. Nxd4 {[%emt 0:00:28]} Nxd4 {[%emt 0:00:20]} 11. Bxd4 {[%emt 0:00:08]} Be6 {[%emt 0:01:21]} 12. Kb1 {[%emt 0:00:36]} Rfc8 {[%emt 0:09:17]} 13. Bxf6 {[%emt 0:05:13]} Bxf6 {[%emt 0:17:54]} 14. Nd5 {[%emt 0:00:10]} Qxd2 {[%emt 0:00:15]} 15. Nxf6+ {[%emt 0:00:08]} exf6 {[%emt 0:00:04]} 16. Rxd2 {[%emt 0:00:06]} f5 {[%emt 0:11:39]} 17. Bd3 {[%emt 0:02:14]} fxe4 {[%emt 0:16:44]} 18. Bxe4 {[%emt 0:00:09]} Rxc4 {[%emt 0:00:29]} 19. Bxb7 {[%emt 0:00:30]} Bf5+ {[%emt 0:04:18]} 20. Ka1 {[%emt 0:00:12]} Rb8 {[%emt 0:02:12]} 21. Bd5 {[%emt 0:01:33]} Rc5 {[%emt 0:01:49]} 22. b3 {[%emt 0:00:36]} Kf8 {[%emt 0:13:09]} 23. g4 {[%emt 0:02:37]} Bd7 {[%emt 0:00:19]} 24. Re1 {[%emt 0:00:25]} Bc6 {[%emt 0:04:05]} 25. Bxc6 {[%emt 0:01:03]} Rxc6 {[%emt 0:00:02]} 26. Kb2 {[%emt 0:01:57]} Re8 {[%emt 0:01:34]} 27. Rde2 {[%emt 0:00:17]} Rec8 {[%emt 0:00:34]} 28. Rd1 {[%emt 0:00:47]} Re8 {[%emt 0:01:17]} 29. Rdd2 {[%emt 0:00:04]} Re7 {[%emt 0:03:29]} 30. b4 {[%emt 0:01:12]} Rec7 {[%emt 0:00:38]} 31. a3 {[%emt 0:00:21]} Rc3 {[%emt 0:00:58]} 32. Rc2 {[%emt 0:02:31]} Rxc2+ {[%emt 0:00:26]} 33. Rxc2 {[%emt 0:00:03]} Rd7 {[%emt 0:00:39]} 34. Re2 {[%emt 0:00:09]} Rc7 {[%emt 0:00:31]} 35. h3 {[%emt 0:00:53]} h5 {[%emt 0:00:36]} 36. Re3 {[%emt 0:00:43]} hxg4 {[%emt 0:00:08]} 37. fxg4 {[%emt 0:00:39]} g5 {[%emt 0:00:34]} 38. Kb3 {[%emt 0:01:12]} Rc6 {[%emt 0:00:46]} 39. a4 {[%emt 0:00:23]} d5 {[%emt 0:00:21]} 40. b5 {[%emt 0:00:48]} Rf6 {[%emt 0:00:25]} 41. Kb4 {[%emt 0:30:22]} Rf4+ {[%emt 0:02:00]} 42. Ka5 {[%emt 0:00:00]} Rf6 {[%emt 0:14:20]} 43. Rd3 {[%emt 0:00:00]} Rd6 {[%emt 0:02:41]} 44. Kb4 {[%emt 0:00:00]} Ke7 {[%emt 0:00:47]} 45. Kc5 {[%emt 0:00:00]} Ke6 {[%emt 0:03:30]} 46. Re3+ {[%emt 0:00:00]} Kd7 {[%emt 0:00:08]} 47. Kd4 {[%emt 0:00:00]} Rf6 {[%emt 0:07:52]} 48. Kxd5 {[%emt 0:00:00]} Rf4 {[%emt 0:00:07]} 49. a5 {[%emt 0:00:00]} f5 {[%emt 0:00:14]} 50. gxf5 {[%emt 0:00:00]} Rxf5+ {[%emt 0:00:02]} 51. Re5 {[%emt 0:00:00]} Rf3 {[%emt 0:01:41]} 52. Rxg5 {[%emt 0:00:00]} Rxh3 {[%emt 0:00:15]} 53. Rg7+ {[%emt 0:00:00]} Kc8 {[%emt 0:00:16]} 54. Rxa7 {[%emt 0:00:00]} Rh5+ {[%emt 0:00:29]} 55. Kc4 {[%emt 0:00:00]} Rh4+ {[%emt 0:00:26]} 56. Kd3 {[%emt 0:00:00]} Rh3+ {[%emt 0:00:14]} 57. Ke4 {[%emt 0:00:00]} Rh4+ {[%emt 0:00:26]} 58. Kf3 {[%emt 0:00:00]} Rh3+ {[%emt 0:02:36]} 59. Kg4 {[%emt 0:00:00]} Re3 {[%emt 0:00:59]} 60. b6 {[%emt 0:00:00]} Rb3 {[%emt 0:01:07]} 61. Kf5 {[%emt 0:00:00]} Kb8 {[%emt 0:00:20]} 62. Ke4 {[%emt 0:00:00]} Rb1 {[%emt 0:00:34]} 63. Kd4 {[%emt 0:00:00]} Rc1 {[%emt 0:00:31]} 64. Rh7 {[%emt 0:00:00]} Ra1 {[%emt 0:00:31]} 65. Kc5 {[%emt 0:00:00]} Rc1+ {[%emt 0:00:41]} 66. Kb5 {[%emt 0:00:00]} Rc8 {[%emt 0:00:25]} 67. a6 {[%emt 0:00:00]} Rg8 {[%emt 0:00:19]} 68. a7+ {[%emt 0:00:00]} Ka8 {[%emt 0:00:30]} 69. Ka6 {[%emt 0:00:00]} 1-0

[Event "XII Cracow ICC-B 2024"]
[Site "Krakow"]
[Date "2024.06.25"]
[Round "5.5"]
[White "Seref, Erdogan"]
[Black "Kaim, Piotr"]
[Result "0-1"]
[ECO "B10"]
[WhiteElo "1991"]
[BlackElo "2094"]
[Annotator "NA RC"]
[PlyCount "48"]
[EventDate "2024.06.20"]
[EventType "swiss"]
[EventCountry "POL"]
[SourceTitle "playchess.com"]
[Source "ChessBase"]
[SourceQuality "1"]
[TimeControl "40/5400+30:1800+30"]

1. e4 {[%emt 0:01:40]} c6 {[%emt 0:03:33]} 2. Nf3 {[%emt 0:00:16]} d5 {[%emt 0:00:15]} 3. Nc3 {[%emt 0:00:13]} dxe4 {[%emt 0:00:46]} 4. Nxe4 {[%emt 0:00:21]} Nf6 {[%emt 0:00:12]} 5. Qe2 {[%emt 0:00:24]} Bg4 {[%emt 0:01:16]} 6. h3 {[%emt 0:10:34]} Bh5 {[%emt 0:00:32]} 7. g4 {[%emt 0:16:16]} Bg6 {[%emt 0:01:28]} 8. d3 {[%emt 0:01:46]} Nxe4 {[%emt 0:02:15]} 9. dxe4 {[%emt 0:00:13]} Nd7 {[%emt 0:04:30]} 10. Bg2 {[%emt 0:03:03]} Qc7 {[%emt 0:10:30]} 11. Nh4 {[%emt 0:15:58]} e5 {[%emt 0:00:34]} 12. Bd2 {[%emt 0:00:31]} Bc5 {[%emt 0:01:32]} 13. Nf5 {[%emt 0:04:20]} Bxf5 {[%emt 0:08:30]} 14. exf5 {[%emt 0:00:18]} O-O-O {[%emt 0:01:14]} 15. O-O-O {[%emt 0:13:19]} Qb6 {[%emt 0:06:40]} 16. Rhf1 {[%emt 0:01:16]} Nf6 {[%emt 0:01:14]} 17. c3 {[%emt 0:04:51]} a5 {[%emt 0:10:32]} 18. Bg5 {[%emt 0:07:39]} Rxd1+ {[%emt 0:03:50]} 19. Kxd1 {[%emt 0:00:20]} Re8 {[%emt 0:12:38]} 20. Kc2 {[%emt 0:03:56]} Nd5 {[%emt 0:00:40]} 21. Rd1 {[%emt 0:03:56]} f6 {[%emt 0:00:51]} 22. Bxd5 {[%emt 0:01:03]} cxd5 {[%emt 0:03:42]} 23. Rxd5 {[%emt 0:01:19]} Qc6 {[%emt 0:02:47]} 24. Qc4 {[%emt 0:00:22]} Bb6 {[%emt 0:05:24]} 0-1

[Event "XII Cracow ICC-B 2024"]
[Site "Krakow"]
[Date "2024.06.25"]
[Round "5.6"]
[White "Przybylski, Bartosz"]
[Black "Marciniak, Leonard"]
[Result "0-1"]
[ECO "A16"]
[WhiteElo "2085"]
[BlackElo "1937"]
[Annotator "NA RC"]
[PlyCount "69"]
[EventDate "2024.06.20"]
[EventType "swiss"]
[EventCountry "POL"]
[SourceTitle "playchess.com"]
[Source "ChessBase"]
[SourceQuality "1"]
[TimeControl "40/5400+30:1800+30"]

1. c4 {[%emt 0:00:04]} Nf6 {[%emt 0:01:30]} 2. Nf3 {[%emt 0:00:10]} g6 {[%emt 0:01:05]} 3. Nc3 {[%emt 0:00:25]} d5 {[%emt 0:01:43]} 4. cxd5 {[%emt 0:00:07]} Nxd5 {[%emt 0:00:07]} 5. h4 {[%emt 0:00:10]} h5 {[%emt 0:01:58]} 6. Qb3 {[%emt 0:04:17]} Nb6 {[%emt 0:00:58]} 7. d4 {[%emt 0:02:13]} Bg7 {[%emt 0:01:20]} 8. Bg5 {[%emt 0:05:00]} Be6 {[%emt 0:02:46]} 9. Qc2 {[%emt 0:05:05]} Nc6 {[%emt 0:01:53]} 10. e3 {[%emt 0:02:25]} Nb4 {[%emt 0:01:34]} 11. Qd1 {[%emt 0:00:58]} O-O {[%emt 0:05:24]} 12. a3 {[%emt 0:07:43]} N4d5 {[%emt 0:00:45]} 13. e4 {[%emt 0:02:20]} Nxc3 {[%emt 0:01:36]} 14. bxc3 {[%emt 0:00:06]} c5 {[%emt 0:00:53]} 15. Be2 {[%emt 0:02:27]} cxd4 {[%emt 0:04:12]} 16. cxd4 {[%emt 0:00:10]} Qd6 {[%emt 0:05:53]} 17. d5 {[%emt 0:04:34]} Bc3+ {[%emt 0:04:42]} 18. Bd2 {[%emt 0:12:50]} Bxd2+ {[%emt 0:05:53]} 19. Qxd2 {[%emt 0:11:52]} Bg4 {[%emt 0:01:07]} 20. Ng5 {[%emt 0:02:00]} Qe5 {[%emt 0:06:32]} 21. Rc1 {[%emt 0:02:51]} Bxe2 {[%emt 0:00:54]} 22. Qxe2 {[%emt 0:00:11]} Rac8 {[%emt 0:01:21]} 23. Rxc8 {[%emt 0:07:40]} Rxc8 {[%emt 0:00:40]} 24. O-O {[%emt 0:00:30]} f6 {[%emt 0:06:45]} 25. Nf3 {[%emt 0:06:13]} Qc3 {[%emt 0:01:22]} 26. e5 {[%emt 0:02:08]} Qc4 {[%emt 0:09:03]} 27. Qb2 {[%emt 0:05:19]} Qc3 {[%emt 0:04:46]} 28. Qb1 {[%emt 0:01:30]} Qc2 {[%emt 0:04:02]} 29. Qb4 {[%emt 0:01:45]} Qc5 {[%emt 0:01:21]} 30. Qf4 {[%emt 0:04:01]} Kg7 {[%emt 0:03:34]} 31. exf6+ {[%emt 0:06:18]} exf6 {[%emt 0:00:07]} 32. Rd1 {[%emt 0:00:47]} Nxd5 {[%emt 0:03:13]} 33. Qe4 {[%emt 0:00:30]} Nb6 {[%emt 0:03:18]} 34. Nd4 {[%emt 0:00:55]} Kh7 {[%emt 0:06:05]} 35. Qxb7+ {[%emt 0:00:00]} 0-1

[Event "XII Cracow ICC-B 2024"]
[Site "Krakow"]
[Date "2024.06.25"]
[Round "5.7"]
[White "Polak, Michal"]
[Black "Nun, Grzegorz"]
[Result "1-0"]
[ECO "A43"]
[WhiteElo "1996"]
[BlackElo "1921"]
[Annotator "NA"]
[PlyCount "85"]
[EventDate "2024.06.20"]
[EventType "swiss"]
[EventCountry "POL"]
[SourceTitle "playchess.com"]
[Source "ChessBase"]
[SourceQuality "1"]
[TimeControl "40/5400+30:1800+30"]

1. d4 {[%emt 0:00:03]} Nf6 {[%emt 0:00:07]} 2. Nf3 {[%emt 0:00:04]} c5 {[%emt 0:01:35]} 3. d5 {[%emt 0:00:17]} d6 {[%emt 0:02:20]} 4. Bg5 {[%emt 0:00:41]} Nbd7 {[%emt 0:02:01]} 5. Nc3 {[%emt 0:02:21]} g6 {[%emt 0:02:30]} 6. e4 {[%emt 0:00:36]} Bg7 {[%emt 0:00:25]} 7. a4 {[%emt 0:01:17]} a6 {[%emt 0:05:51]} 8. a5 {[%emt 0:01:31]} b5 {[%emt 0:00:23]} 9. axb6 {[%emt 0:00:14]} Qxb6 {[%emt 0:00:09]} 10. Ra2 {[%emt 0:07:01]} Bb7 {[%emt 0:05:57]} 11. Be2 {[%emt 0:05:01]} O-O {[%emt 0:01:28]} 12. O-O {[%emt 0:00:14]} h6 {[%emt 0:08:22]} 13. Bf4 {[%emt 0:00:49]} Qd8 {[%emt 0:08:08]} 14. Nd2 {[%emt 0:06:22]} Nb6 {[%emt 0:00:44]} 15. Nb3 {[%emt 0:01:38]} Qc8 {[%emt 0:00:37]} 16. Qa1 {[%emt 0:00:30]} e5 {[%emt 0:05:52]} 17. Bd2 {[%emt 0:05:29]} Ne8 {[%emt 0:05:18]} 18. Na5 {[%emt 0:01:19]} Nc7 {[%emt 0:00:37]} 19. Ra3 {[%emt 0:02:11]} Ra7 {[%emt 0:04:02]} 20. Rb3 {[%emt 0:08:58]} Nd7 {[%emt 0:00:32]} 21. Nc4 {[%emt 0:03:28]} Qb8 {[%emt 0:08:22]} 22. Qa4 {[%emt 0:17:13]} Rd8 {[%emt 0:05:24]} 23. Ra1 {[%emt 0:02:05]} Bf8 {[%emt 0:01:36]} 24. Na5 {[%emt 0:02:14]} Qa8 {[%emt 0:00:37]} 25. f3 {[%emt 0:05:35]} Kg7 {[%emt 0:02:00]} 26. Ra2 {[%emt 0:00:27]} Nb8 {[%emt 0:04:23]} 27. Qc4 {[%emt 0:02:58]} Nd7 {[%emt 0:01:46]} 28. Qa4 {[%emt 0:04:15]} Nb8 {[%emt 0:00:21]} 29. Qa3 {[%emt 0:02:28]} Be7 {[%emt 0:01:17]} 30. Na4 {[%emt 0:00:52]} Nd7 {[%emt 0:00:19]} 31. Nb6 {[%emt 0:02:44]} Nxb6 {[%emt 0:01:00]} 32. Rxb6 {[%emt 0:00:01]} Bxd5 {[%emt 0:01:17]} 33. exd5 {[%emt 0:01:27]} Qxd5 {[%emt 0:00:06]} 34. Be3 {[%emt 0:02:09]} Bg5 {[%emt 0:02:43]} 35. c4 {[%emt 0:02:24]} Qe6 {[%emt 0:01:22]} 36. Bxg5 {[%emt 0:02:24]} hxg5 {[%emt 0:00:04]} 37. Nc6 {[%emt 0:00:09]} d5 {[%emt 0:00:47]} 38. Qxc5 {[%emt 0:01:35]} Qf5 {[%emt 0:00:05]} 39. Nxa7 {[%emt 0:01:41]} Ne6 {[%emt 0:01:12]} 40. Rxe6 {[%emt 0:00:17]} Qxe6 {[%emt 0:00:04]} 41. Nc6 {[%emt 0:31:07]} Rd6 {[%emt 0:30:05]} 42. Rxa6 {[%emt 0:00:39]} dxc4 {[%emt 0:00:38]} 43. Qxc4 {[%emt 0:00:26]} 1-0